fUSD/lending_fUSD_20240317
["ID","MTS","AMOUNT","RATE_DAILY","PERIOD"]
[319280447,1710636698316,-604.33,0.00015342,2]
[319280448,1710636698326,-1227.32,0.00015342,2]
[319280449,1710636698336,-500.0,0.00015342,2]
[319280450,1710636698347,-500.0,0.00015342,2]
[319280451,1710636698357,-500.0,0.00015342,2]
[319280452,1710636698367,-604.33,0.00015342,2]
[319280453,1710636698377,-500.0,0.00015342,2]
[319280454,1710636698387,-500.0,0.00015342,2]
[319280455,1710636698397,-1227.32,0.00015342,2]
[319280456,1710636698407,-500.0,0.00015342,2]
[319280457,1710636698416,-604.33,0.00015342,2]
[319280458,1710636698426,-500.0,0.00015342,2]
[319280459,1710636698435,-500.0,0.00015342,2]
[319280460,1710636698445,-1227.32,0.00015342,2]
[319280461,1710636698454,-604.33,0.00015342,2]
[319280462,1710636698464,-500.0,0.00015342,2]
[319280463,1710636698473,-1227.32,0.00015342,2]
[319280464,1710636698482,-604.33,0.00015342,2]
[319280465,1710636698492,-470.21175048,0.00015342,2]
[319280466,1710636698501,-500.0,0.00015342,2]
[319280467,1710636698510,-1227.32,0.00015342,2]
[319280468,1710636698519,-604.33,0.00015342,2]
[319280469,1710636698529,-500.0,0.00015342,2]
[319280470,1710636698538,-1227.32,0.00015342,2]
[319280471,1710636698548,-500.0,0.00015342,2]
[319280472,1710636698556,-1227.32,0.00015342,2]
[319280473,1710636698566,-500.0,0.00015342,2]
[319280474,1710636698576,-604.33,0.00015342,2]
[319280475,1710636698585,-1227.32,0.00015342,2]
[319280476,1710636698596,-500.0,0.00015342,2]
[319280477,1710636698606,-604.33,0.00015342,2]
[319280478,1710636698616,-500.0,0.00015342,2]
[319280479,1710636698627,-1227.44,0.00015342,2]
[319280480,1710636698637,-553.83899328,0.00015342,2]
[319280481,1710636698647,-604.33,0.00015342,2]
[319280482,1710636698659,-612.98,0.00015342,2]
[319280483,1710636698668,-500.0,0.00015342,2]
[319280484,1710636698678,-604.33,0.00015342,2]
[319280485,1710636698688,-500.0,0.00015342,2]
[319280486,1710636698699,-604.33,0.00015342,2]
[319280487,1710636698708,-604.43,0.00015342,2]
[319280488,1710636698718,-500.0,0.00015342,2]
[319280489,1710636698728,-926.45,0.00015342,2]
[319280490,1710636698737,-151.0,0.00015342,2]
[319280491,1710636698747,-500.0,0.00015342,2]
[319280492,1710636698757,-926.45,0.00015342,2]
[319280493,1710636698767,-151.0,0.00015342,2]
[319280494,1710636698777,-500.0,0.00015342,2]
[319280495,1710636698786,-926.45,0.00015342,2]
[319280496,1710636698796,-151.0,0.00015342,2]
[319280497,1710636698806,-926.45,0.00015342,2]
[319280498,1710636698815,-500.0,0.00015342,2]
[319280499,1710636698824,-151.0,0.00015342,2]
[319280500,1710636698834,-500.0,0.00015342,2]
[319280501,1710636698846,-500.0,0.00015342,2]
[319280502,1710636698856,-500.0,0.00015342,2]
[319280503,1710636698866,-926.45,0.00015342,2]
[319280504,1710636698875,-500.0,0.00015342,2]
[319280505,1710636698884,-500.0,0.00015342,2]
[319280506,1710636698894,-500.0,0.00015342,2]
[319280507,1710636698903,-500.0,0.00015342,2]
[319280508,1710636698913,-500.0,0.00015342,2]
[319280509,1710636698922,-12835.62,0.00015342,2]
[319280510,1710636698932,-500.0,0.00015342,2]
[319280511,1710636698942,-926.45,0.00015342,2]
[319280512,1710636698952,-500.0,0.00015342,2]
[319280513,1710636698961,-500.0,0.00015342,2]
[319280514,1710636698971,-12835.62,0.00015342,2]
[319280515,1710636698980,-500.0,0.00015342,2]
[319280516,1710636698990,-926.45,0.00015342,2]
[319280517,1710636698999,-500.0,0.00015342,2]
[319280518,1710636699009,-12835.62,0.00015342,2]
[319280519,1710636699019,-500.0,0.00015342,2]
[319280520,1710636699028,-500.0,0.00015342,2]
[319280521,1710636699038,-926.45,0.00015342,2]
[319280522,1710636699048,-500.0,0.00015342,2]
[319280523,1710636699058,-500.0,0.00015342,2]
[319280524,1710636699067,-12835.62,0.00015342,2]
[319280525,1710636699078,-926.45,0.00015342,2]
[319280526,1710636699088,-500.0,0.00015342,2]
[319280527,1710636699100,-774.63,0.00015342,2]
[319280528,1710636699110,-500.0,0.00015342,2]
[319280529,1710636699120,-500.0,0.00015342,2]
[319280530,1710636699130,-12835.62,0.00015342,2]
[319280531,1710636699139,-926.45,0.00015342,2]
[319280532,1710636699149,-3101.56,0.00015342,2]
[319280533,1710636699159,-500.0,0.00015342,2]
[319280534,1710636699169,-774.63,0.00015342,2]
[319280535,1710636699179,-381.74,0.00015342,2]
[319280536,1710636699189,-12835.62,0.00015342,2]
[319280537,1710636699199,-500.0,0.00015342,2]
[319280538,1710636699209,-926.45,0.00015342,2]
[319280539,1710636699219,-3101.56,0.00015342,2]
[319280540,1710636699230,-500.0,0.00015342,2]
[319280541,1710636699240,-774.63,0.00015342,2]
[319280542,1710636699395,-12835.62,0.00015342,2]
[319280543,1710636699408,-500.0,0.00015342,2]
[319280544,1710636699418,-3101.56,0.00015342,2]
[319280545,1710636699427,-926.45,0.00015342,2]
[319280546,1710636699437,-500.0,0.00015342,2]
[319280547,1710636699447,-500.0,0.00015342,2]
[319280548,1710636699456,-774.63,0.00015342,2]
[319280549,1710636699466,-3101.56,0.00015342,2]
[319280550,1710636699476,-926.45,0.00015342,2]
[319280551,1710636699485,-12835.62,0.00015342,2]
[319280552,1710636699495,-500.0,0.00015342,2]
[319280553,1710636699504,-774.63,0.00015342,2]
[319280554,1710636699514,-303.15258151,0.00015342,2]
[319280555,1710636699524,-926.45,0.00015342,2]
[319280556,1710636699533,-3101.56,0.00015342,2]
[319280557,1710636699542,-500.0,0.00015342,2]
[319280558,1710636699552,-774.63,0.00015342,2]
[319280559,1710636699561,-12835.62,0.00015342,2]
[319280560,1710636699571,-926.45,0.00015342,2]
[319280561,1710636699580,-3101.56,0.00015342,2]
[319280562,1710636699589,-500.0,0.00015342,2]
[319280563,1710636699602,-774.63,0.00015342,2]
[319280564,1710636699611,-12835.62,0.00015342,2]
[319280565,1710636699621,-926.45,0.00015342,2]
[319280566,1710636699635,-500.0,0.00015342,2]
[319280567,1710636699646,-6163.86541674,0.00015342,2]
[319280568,1710636701225,-466.2641,0.00015342,2]
[319280569,1710636701438,-5001.82936997,0.00015299,2]
[319280570,1710636701447,-6205.49048326,0.00015342,2]
[319280571,1710636701456,-774.63,0.00015342,2]
[319280572,1710636701466,-926.45,0.00015342,2]
[319280573,1710636701475,-3101.56,0.00015342,2]
[319280574,1710636701485,-12835.62,0.00015342,2]
[319280575,1710636701494,-774.63,0.00015342,2]
[319280576,1710636701503,-151.0,0.00015342,2]
[319280577,1710636701513,-926.45,0.00015342,2]
[319280578,1710636701522,-2224.99431988,0.00015342,2]
[319280579,1710636701537,-794.08674631,0.00015342,2]
[319280580,1710636701549,-82.47893381,0.00015342,2]
[319280581,1710636701559,-500.0,0.00015342,2]
[319280582,1710636701568,-774.63,0.00015342,2]
[319280583,1710636701578,-151.0,0.00015342,2]
[319280584,1710636701587,-779.6202066,0.00015342,2]
[319280585,1710636701687,-2321.9397934,0.00015342,2]
[319280586,1710636701696,-464.82417053,0.00015342,2]
[319280587,1710636701705,-774.63,0.00015342,2]
[319280588,1710636701714,-12835.62,0.00015342,2]
[319280589,1710636701724,-151.0,0.00015342,2]
[319280590,1710636701733,-500.0,0.00015342,2]
[319280591,1710636701743,-3101.56,0.00015342,2]
[319280592,1710636701752,-926.45,0.00015342,2]
[319280593,1710636701761,-774.63,0.00015342,2]
[319280594,1710636701771,-500.0,0.00015342,2]
[319280595,1710636701780,-151.0,0.00015342,2]
[319280596,1710636701790,-12835.62,0.00015342,2]
[319280597,1710636701799,-3101.56,0.00015342,2]
[319280598,1710636701808,-926.45,0.00015342,2]
[319280599,1710636701817,-774.63,0.00015342,2]
[319280600,1710636701827,-7921.73418775,0.00015342,2]
[319280601,1710636702178,-150.0,0.00014685,2]
[319280602,1710636702188,-516.61,0.00014685,2]
[319280603,1710636702197,-150.0,0.00014685,2]
[319280604,1710636702206,-414.85,0.00014685,2]
[319280605,1710636702216,-754.0,0.00015339,2]
[319280606,1710636702226,-265.82786123,0.0001534,2]
[319280607,1710636702235,-1609.70784476,0.00015342,2]
[319280608,1710636708168,-155.0,0.00011899,2]
[319280609,1710636708197,-155.0,0.00011899,2]
[319280610,1710636708227,-15769.4704,0.000119,2]
[319280611,1710636708840,161.07086035,0.00015,10]
[319280612,1710636715258,11831.75786608,0.00015,10]
[319280613,1710636755434,664.89,0.00012047,2]
[319280620,1710637039237,-1445962.1,0.000154,5]
[319280621,1710637228204,631.64,0.00011541,2]
[319280622,1710637698399,600.05,0.00011223,2]
[319280626,1710637712742,-158.25562856,0.00013006,2]
[319280627,1710637712771,-155.0,0.00013101,2]
[319280628,1710637712797,-155.0,0.00013102,2]
[319280629,1710637712824,-155.0,0.00013103,2]
[319280630,1710637712851,-249.69624654,0.00013104,2]
[319280631,1710637712887,-360.47780149,0.00013105,2]
[319280632,1710637712916,-3060.85523185,0.00013105,2]
[319280633,1710637712945,-160.08,0.0001311,2]
[319280634,1710637712974,-23900.0,0.00013118,2]
[319280635,1710637713002,-171.11,0.00013123,2]
[319280636,1710637713033,-150.0,0.00013188,2]
[319280637,1710637713062,-1012.3,0.00013188,2]
[319280638,1710637713089,-499.99,0.00013188,2]
[319280639,1710637713116,-458.87,0.00013188,2]
[319280640,1710637713148,-600.0,0.00013189,2]
[319280641,1710637713177,-1925.14,0.00013189,2]
[319280642,1710637713708,1235.12692231,0.000131,2]
[319280659,1710637831585,-1417.78630653,0.00013077,2]
[319280660,1710637831597,-800.22339347,0.00013077,2]
[319280661,1710637831606,-159.99,0.00013261,2]
[319280662,1710637831615,-139.42184286,0.00013261,2]
[319280663,1710637831627,-11.56815714,0.00013261,2]
[319280664,1710637831636,-349.52,0.00013261,2]
[319280665,1710637831646,-9999.99,0.00013261,2]
[319280666,1710637831655,-150.99,0.00013302,2]
[319280667,1710637831664,-319.11149102,0.00013327,2]
[319280668,1710637831673,-319.11149102,0.00013327,2]
[319280669,1710637831683,-319.11149102,0.00013327,2]
[319280670,1710637831692,-189.15,0.00013332,2]
[319280671,1710637831701,-444.62,0.00013364,2]
[319280672,1710637831710,-159.63,0.00013364,2]
[319280673,1710637831719,-171.24,0.00013383,2]
[319280674,1710637831729,-250.0,0.00013429,2]
[319280675,1710637831738,-158.25562852,0.00013453,2]
[319280676,1710637831747,-600.05,0.00013486,2]
[319280677,1710637831757,-368.73,0.00013486,2]
[319280678,1710637831766,-7987.09317805,0.00013496,2]
[319280679,1710637831776,-400.0,0.00013549,2]
[319280680,1710637831785,-6715.22816807,0.00013689,2]
[319280681,1710637831795,-200.0,0.00013699,2]
[319280682,1710637831804,-340.09,0.00013699,2]
[319280683,1710637831813,-160.58,0.00013699,2]
[319280684,1710637831822,-250.0,0.00013699,2]
[319280685,1710637831831,-176.95,0.00013699,2]
[319280686,1710637831840,-177.48,0.00013699,2]
[319280687,1710637831849,-5000.0,0.00013699,2]
[319280688,1710637831858,-159.63,0.00013832,2]
[319280689,1710637831867,-150.0,0.00013863,2]
[319280690,1710637831876,-346.73,0.00013863,2]
[319280691,1710637831885,-516.61,0.00013863,2]
[319280692,1710637831894,-346.73,0.00013863,2]
[319280693,1710637831903,-346.73,0.00013863,2]
[319280694,1710637831912,-516.61,0.00013863,2]
[319280695,1710637831922,-346.73,0.00013878,2]
[319280696,1710637831931,-516.61,0.00013878,2]
[319280697,1710637831940,-516.61,0.000139,2]
[319280698,1710637831949,-346.73,0.000139,2]
[319280699,1710637831958,-158.25562852,0.000139,2]
[319280700,1710637831967,-516.61,0.00013978,2]
[319280701,1710637831976,-346.73,0.00013978,2]
[319280702,1710637831985,-150.0,0.00013978,2]
[319280703,1710637831994,-11326.19792341,0.00014,2]
[319280704,1710637832003,-516.61,0.00014078,2]
[319280705,1710637832012,-346.73,0.00014078,2]
[319280706,1710637832023,-150.0,0.00014078,2]
[319280707,1710637832032,-700.44,0.00014082,2]
[319280708,1710637832041,-249.69624654,0.00014298,2]
[319280709,1710637832050,-159.63,0.00014299,2]
[319280710,1710637832059,-158.25562852,0.00014348,2]
[319280711,1710637832069,-155.0,0.00014388,2]
[319280712,1710637832078,-155.0,0.00014389,2]
[319280713,1710637832087,-159.63,0.00014391,2]
[319280714,1710637832096,-358.35,0.00014411,2]
[319280715,1710637832106,-159.63,0.00014517,2]
[319280716,1710637832115,-162.0,0.00014547,2]
[319280717,1710637832124,-162.0,0.00014575,2]
[319280718,1710637832134,-162.0,0.00014602,2]
[319280719,1710637832143,-162.0,0.0001463,2]
[319280720,1710637832151,-159.63,0.00014643,2]
[319280721,1710637832161,-178.2649,0.00014645,2]
[319280725,1710637832386,-1000.0,0.00014645,2]
[319280726,1710637832396,-1945.6899,0.00014645,2]
[319280727,1710637832405,-162.0,0.00014657,2]
[319280728,1710637832414,-162.0,0.00014684,2]
[319280729,1710637832424,-516.61,0.00014685,2]
[319280730,1710637832433,-346.73,0.00014685,2]
[319280731,1710637832443,-516.61,0.00014685,2]
[319280732,1710637832452,-343.09,0.00014685,2]
[319280733,1710637832461,-516.61,0.00014685,2]
[319280734,1710637832470,-348.64,0.00014685,2]
[319280735,1710637832481,-150.0,0.00014685,2]
[319280736,1710637832490,-820.11,0.00014685,2]
[319280737,1710637832500,-693.46,0.00014685,2]
[319280738,1710637832509,-300.0,0.00014685,2]
[319280739,1710637832518,-150.0,0.00014685,2]
[319280740,1710637832528,-150.0,0.00014685,2]
[319280741,1710637832537,-150.0,0.00014685,2]
[319280742,1710637832546,-150.0,0.00014685,2]
[319280743,1710637832555,-150.0,0.00014685,2]
[319280744,1710637832564,-459.102932,0.00014697,2]
[319280745,1710637832573,-167.893872,0.00014697,2]
[319280746,1710637832582,-173.029314,0.00014697,2]
[319280747,1710637832591,-790.861547,0.00014697,2]
[319280748,1710637832601,-169.03508,0.00014697,2]
[319280749,1710637832610,-169.281997,0.00014697,2]
[319280750,1710637832619,-178.442932,0.00014697,2]
[319280751,1710637832627,-162.0,0.00014712,2]
[319280752,1710637832636,-168.0,0.00014739,2]
[319280753,1710637832645,-118160.9436,0.00014745,2]
[319280754,1710637832655,-324.7507,0.00014745,2]
[319280755,1710637832664,-159.63,0.00014769,2]
[319280756,1710637832674,-180.816095,0.00014795,2]
[319280757,1710637832683,-158.25562852,0.00014795,2]
[319280758,1710637832692,-600.0,0.00014838,2]
[319280759,1710637832703,-459.102932,0.0001488,2]
[319280760,1710637832713,-173.029314,0.0001488,2]
[319280761,1710637832722,-790.861547,0.0001488,2]
[319280762,1710637832738,-159.63,0.00014895,2]
[319280763,1710637832748,-516.61,0.00014904,2]
[319280764,1710637832757,-516.61,0.00014904,2]
[319280765,1710637832768,-494.5,0.00014904,2]
[319280766,1710637832777,-1033.22,0.00014904,2]
[319280767,1710637832787,-235446.27035711,0.00015,2]
[319280768,1710637832796,-2550.0,0.00015,4]
[319280769,1710637832805,-10428.18806068,0.00015,2]
[319280770,1710637832814,-159.63,0.00015021,2]
[319280771,1710637832824,-444.62,0.00015034,2]
[319280772,1710637832833,-1250.0,0.00015052,2]
[319280773,1710637832842,-278.0,0.00015052,2]
[319280774,1710637832852,-3000.0,0.00015052,2]
[319280775,1710637832861,-413.0,0.00015052,2]
[319280776,1710637832871,-802.926,0.00015052,2]
[319280777,1710637832880,-1136.0,0.00015052,2]
[319280778,1710637832889,-150.0,0.00015052,2]
[319280779,1710637832898,-2418.0,0.00015052,2]
[319280780,1710637832909,-1458.0,0.00015052,2]
[319280781,1710637832918,-1622.0,0.00015052,2]
[319280782,1710637832927,-213.0,0.00015052,2]
[319280783,1710637832937,-459.102932,0.00015064,2]
[319280784,1710637832947,-173.029314,0.00015064,2]
[319280785,1710637832956,-790.861547,0.00015064,2]
[319280786,1710637832966,-1185.6,0.000151,3]
[319280787,1710637832980,-787.0,0.000151,2]
[319280788,1710637832989,-156.57713575,0.000151,2]
[319280789,1710637832998,-159.63,0.00015147,2]
[319280790,1710637833011,-154.72962084,0.00015188,2]
[319280791,1710637833020,-200.0,0.00015217,2]
[319280792,1710637833030,-1421.04982066,0.00015233,2]
[319280793,1710637833040,-1421.0498206,0.00015233,2]
[319280794,1710637833050,-1421.0498206,0.00015233,2]
[319280795,1710637833060,-1421.0498206,0.00015233,2]
[319280796,1710637833069,-1421.0498206,0.00015233,2]
[319280797,1710637833079,-1421.0498206,0.00015233,2]
[319280798,1710637833088,-1421.0498206,0.00015233,2]
[319280799,1710637833098,-1421.0498206,0.00015233,2]
[319280800,1710637833110,-184.95083576,0.00015233,2]
[319280801,1710637833120,-184.95083576,0.00015233,2]
[319280802,1710637833130,-184.95083576,0.00015233,2]
[319280803,1710637833140,-200.0,0.00015237,2]
[319280804,1710637833150,-1000.0,0.00015242,2]
[319280805,1710637833162,-9336.5016,0.00015242,2]
[319280806,1710637833171,-5000.0,0.00015242,2]
[319280807,1710637833182,-155.35993743,0.00015242,2]
[319280808,1710637833191,-176.13408742,0.00015242,2]
[319280809,1710637833201,-152.96902586,0.00015242,2]
[319280810,1710637833213,-179.03570041,0.00015242,2]
[319280811,1710637833223,-158.25562852,0.00015242,2]
[319280812,1710637833238,-4805.62437313,0.00015242,2]
[319280813,1710637833248,-203.43253239,0.00015242,2]
[319280814,1710637833258,-3551.42482927,0.00015242,2]
[319280815,1710637833268,-1125.6472076,0.00015242,2]
[319280816,1710637833278,-400.0,0.00015243,2]
[319280817,1710637833289,-459.102932,0.00015248,2]
[319280818,1710637833299,-173.029314,0.00015248,2]
[319280819,1710637833309,-790.861547,0.00015248,2]
[319280820,1710637833319,-4805.62437309,0.00015256,2]
[319280821,1710637833329,-200.0,0.00015257,2]
[319280822,1710637833340,-800.0,0.00015257,2]
[319280823,1710637833351,-200.0,0.00015257,2]
[319280824,1710637833361,-500.0,0.00015257,2]
[319280825,1710637833371,-200.0,0.00015257,2]
[319280826,1710637833381,-500.0,0.00015265,2]
[319280827,1710637833390,-500.0,0.00015265,2]
[319280828,1710637833400,-500.0,0.00015265,2]
[319280829,1710637833410,-307.4757,0.00015265,2]
[319280830,1710637833420,-1000.0,0.00015265,2]
[319280831,1710637833429,-1000.0,0.00015265,2]
[319280832,1710637833439,-1000.0,0.00015265,2]
[319280833,1710637833448,-1000.0,0.00015265,2]
[319280834,1710637833458,-1000.0,0.00015265,2]
[319280835,1710637833467,-1000.0,0.00015265,2]
[319280836,1710637833480,-1000.0,0.00015265,2]
[319280837,1710637833489,-1000.0,0.00015265,2]
[319280838,1710637833499,-1000.0,0.00015265,2]
[319280839,1710637833508,-1000.0,0.00015265,2]
[319280840,1710637833519,-1000.0,0.00015265,2]
[319280841,1710637833529,-1000.0,0.00015265,2]
[319280842,1710637833539,-1000.0,0.00015265,2]
[319280843,1710637833549,-1000.0,0.00015265,2]
[319280844,1710637833558,-1000.0,0.00015265,2]
[319280845,1710637833567,-1000.0,0.00015265,2]
[319280846,1710637833577,-1000.0,0.00015265,2]
[319280847,1710637833586,-1000.0,0.00015265,2]
[319280848,1710637833595,-1000.0,0.00015265,2]
[319280849,1710637833604,-1000.0,0.00015265,2]
[319280850,1710637833614,-1000.0,0.00015265,2]
[319280851,1710637833623,-1000.0,0.00015265,2]
[319280852,1710637833633,-1000.0,0.00015265,2]
[319280853,1710637833642,-1000.0,0.00015265,2]
[319280854,1710637833651,-1000.0,0.00015265,2]
[319280855,1710637833660,-1000.0,0.00015265,2]
[319280856,1710637833670,-1000.0,0.00015265,2]
[319280857,1710637833679,-1000.0,0.00015265,2]
[319280858,1710637833689,-1000.0,0.00015265,2]
[319280859,1710637833698,-1000.0,0.00015265,2]
[319280860,1710637833708,-1000.0,0.00015265,2]
[319280861,1710637833717,-1000.0,0.00015265,2]
[319280862,1710637833730,-1000.0,0.00015265,2]
[319280863,1710637833739,-1000.0,0.00015265,2]
[319280864,1710637833748,-1000.0,0.00015265,2]
[319280865,1710637833757,-1000.0,0.00015265,2]
[319280866,1710637833765,-428.5393,0.00015265,2]
[319280867,1710637833774,-500.0,0.00015265,2]
[319280868,1710637833783,-504.9297,0.00015265,2]
[319280869,1710637833792,-4805.62437309,0.00015271,2]
[319280870,1710637833800,-159.63,0.00015273,2]
[319280871,1710637833809,-4805.62437309,0.00015285,2]
[319280872,1710637833819,-1000.0,0.00015299,2]
[319280873,1710637833828,-1000.0,0.00015299,2]
[319280874,1710637833837,-4805.62437309,0.00015299,2]
[319280875,1710637833846,-360.89346357,0.000153,2]
[319280876,1710637833856,-360.89346357,0.000153,2]
[319280877,1710637833865,-360.89346357,0.000153,2]
[319280878,1710637833874,-360.89346357,0.000153,2]
[319280879,1710637833884,-360.89346357,0.000153,2]
[319280880,1710637833893,-360.89346357,0.000153,2]
[319280881,1710637833902,-360.89346357,0.000153,2]
[319280882,1710637833912,-360.89346357,0.000153,2]
[319280883,1710637833921,-360.89346357,0.000153,2]
[319280884,1710637833930,-360.89346357,0.000153,2]
[319280885,1710637833939,-360.89346357,0.000153,2]
[319280886,1710637833948,-360.89346357,0.000153,2]
[319280887,1710637833958,-360.89346357,0.000153,2]
[319280888,1710637833968,-360.89346357,0.000153,2]
[319280889,1710637833982,-360.89346357,0.000153,2]
[319280890,1710637833991,-360.89346357,0.000153,2]
[319280891,1710637834002,-360.89346357,0.000153,2]
[319280892,1710637834011,-360.89346357,0.000153,2]
[319280893,1710637834021,-360.89346357,0.000153,2]
[319280894,1710637834033,-360.89346357,0.000153,2]
[319280895,1710637834043,-360.89346357,0.000153,2]
[319280896,1710637834053,-360.89346357,0.000153,2]
[319280897,1710637834062,-360.89346357,0.000153,2]
[319280898,1710637834074,-360.89346357,0.000153,2]
[319280899,1710637834084,-360.89346357,0.000153,2]
[319280900,1710637834094,-360.89346357,0.000153,2]
[319280901,1710637834104,-360.89346357,0.000153,2]
[319280902,1710637834113,-360.89346357,0.000153,2]
[319280903,1710637834123,-360.89346357,0.000153,2]
[319280904,1710637834133,-360.89346357,0.000153,2]
[319280905,1710637834143,-222.2142847,0.000153,2]
[319280906,1710637834152,-222.2142847,0.000153,2]
[319280907,1710637834162,-222.2142847,0.000153,2]
[319280908,1710637834172,-222.2142847,0.000153,2]
[319280909,1710637834182,-222.2142847,0.000153,2]
[319280910,1710637834192,-222.2142847,0.000153,2]
[319280911,1710637834201,-222.2142847,0.000153,2]
[319280912,1710637834211,-222.2142847,0.000153,2]
[319280913,1710637834220,-222.2142847,0.000153,2]
[319280914,1710637834231,-222.2142847,0.000153,2]
[319280915,1710637834240,-222.2142847,0.000153,2]
[319280916,1710637834249,-222.2142847,0.000153,2]
[319280917,1710637834258,-222.2142847,0.000153,2]
[319280918,1710637834267,-222.2142847,0.000153,2]
[319280919,1710637834276,-222.2142847,0.000153,2]
[319280920,1710637834285,-222.2142847,0.000153,2]
[319280921,1710637834294,-222.2142847,0.000153,2]
[319280922,1710637834303,-222.2142847,0.000153,2]
[319280923,1710637834313,-222.2142847,0.000153,2]
[319280924,1710637834322,-222.2142847,0.000153,2]
[319280925,1710637834332,-222.2142847,0.000153,2]
[319280926,1710637834341,-222.2142847,0.000153,2]
[319280927,1710637834350,-222.2142847,0.000153,2]
[319280928,1710637834360,-222.2142847,0.000153,2]
[319280929,1710637834369,-222.2142847,0.000153,2]
[319280930,1710637834379,-222.2142847,0.000153,2]
[319280931,1710637834389,-222.2142847,0.000153,2]
[319280932,1710637834399,-222.2142847,0.000153,2]
[319280933,1710637834408,-222.2142847,0.000153,2]
[319280934,1710637834418,-222.2142847,0.000153,2]
[319280935,1710637834427,-4805.62437309,0.00015314,2]
[319280936,1710637834436,-200.0,0.00015316,2]
[319280937,1710637834446,-1421.0498206,0.00015316,2]
[319280938,1710637834455,-152.96902584,0.00015321,2]
[319280939,1710637834464,-1180.59572383,0.00015321,2]
[319280940,1710637834473,-3551.42482925,0.00015321,2]
[319280941,1710637834486,-315.45678045,0.00015325,2]
[319280942,1710637834496,-4805.62437309,0.00015328,2]
[319280943,1710637834505,-201.94232396,0.00015332,2]
[319280944,1710637834515,-272.3303569,0.00015337,2]
[319280945,1710637834524,-352.11820824,0.00015337,2]
[319280946,1710637834533,-165.0,0.00015337,2]
[319280947,1710637834544,-166.88342114,0.0001534,2]
[319280948,1710637834554,-204.73314214,0.0001534,2]
[319280949,1710637834564,-400.0,0.0001534,2]
[319280950,1710637834575,-7015.46994462,0.0001534,2]
[319280951,1710637834585,-2549.93142396,0.0001534,2]
[319280952,1710637834594,-297.37547101,0.0001534,2]
[319280953,1710637834604,-3414.18475897,0.0001534,2]
[319280954,1710637834613,-157.43821867,0.0001534,2]
[319280955,1710637834622,-559.10874154,0.0001534,2]
[319280956,1710637834630,-196.31383867,0.0001534,2]
[319280957,1710637834639,-2169.05123034,0.0001534,2]
[319280958,1710637834649,-250.0,0.0001534,2]
[319280959,1710637834658,-646.69868344,0.0001534,2]
[319280960,1710637834667,-473.9119766,0.0001534,2]
[319280961,1710637834675,-276.84553998,0.0001534,2]
[319280962,1710637834685,-160.14223415,0.0001534,2]
[319280963,1710637834694,-828.9355046,0.0001534,2]
[319280964,1710637834702,-780.66653739,0.0001534,2]
[319280965,1710637834711,-964.51780984,0.0001534,2]
[319280966,1710637834719,-346.90516356,0.0001534,2]
[319280967,1710637834731,-3179.01503268,0.0001534,2]
[319280968,1710637834740,-155.59856259,0.0001534,2]
[319280969,1710637834749,-394.28207484,0.0001534,2]
[319280970,1710637834758,-179.88780332,0.0001534,2]
[319280971,1710637834767,-279.55412423,0.0001534,2]
[319280972,1710637834776,-359.57225021,0.0001534,2]
[319280973,1710637834785,-3121.89411134,0.0001534,2]
[319280974,1710637834794,-601.92271668,0.0001534,2]